bitfinex-derivatives/quotes_SOLF0:USTF0_20240920
["timestamp","ask_amount","ask_price","bid_price","bid_amount"]
[1726832075881,10.22,150.22,150.17,10.22]
[1726832076269,10.22,150.23,150.19,10.22]
[1726832076881,3.3283,150.21,150.19,10.22]
[1726832077082,1.2674,150.25,150.2,10.22]
[1726832077274,11.4874,150.25,150.21,13.60694065]
[1726832077474,3.3278,150.23,150.21,10.22]
[1726832077976,3.3278,150.23,150.21,13.48474175]
[1726832078279,3.3278,150.23,150.21,10.22]
[1726832078479,3.3279,150.22,150.21,10.22]
[1726832079376,3.3278,150.23,150.21,10.22]
[1726832079578,3.3278,150.23,150.21,13.5258118]
[1726832079778,11.4874,150.25,150.21,10.22]
[1726832080581,3.3278,150.23,150.21,13.5481]
[1726832080777,3.3278,150.23,150.21,10.22]
[1726832081182,3.3278,150.23,150.21,13.54512067]
[1726832081978,1.3526,150.26,150.22,10.22]
[1726832082181,1.3801,150.29,150.25,10.22]
[1726832082879,11.6001,150.29,150.26,3.2596675]
[1726832083279,11.6001,150.29,150.24,13.5474]
[1726832083479,10.22,150.28,150.24,10.22]
[1726832083683,11.5909,150.28,150.23,10.22]
[1726832083880,3.3274,150.25,150.23,16.81701937]
[1726832084279,3.3274,150.25,150.23,13.48931937]
[1726832085384,3.3274,150.25,150.23,10.22]
[1726832085585,3.3274,150.25,150.24,10.22]
[1726832085776,10.22,150.25,150.17,2.5001]
[1726832085981,10.22,150.25,150.2,10.22]
[1726832086281,10.22,150.25,150.21,3.3281]
[1726832086679,10.22,150.26,150.22,10.22]
[1726832087085,3.3276,150.24,150.22,13.5479]
[1726832087581,3.3273,150.25,150.22,13.5479]
[1726832088085,10.22,150.26,150.22,13.5479]
[1726832088486,3.3276,150.24,150.22,10.22]
[1726832089982,3.3277,150.23,150.22,10.22]
[1726832090287,10.22,150.26,150.22,10.22]
[1726832090886,3.3277,150.24,150.22,10.22]
[1726832091983,3.3277,150.24,150.22,13.5479]
[1726832092487,3.3273,150.25,150.22,13.5479]
[1726832093089,10.22,150.26,150.22,10.22]
[1726832093280,1.3746,150.27,150.22,10.22]
[1726832093478,3.3274,150.25,150.23,13.5477]
[1726832093678,3.3274,150.25,150.23,10.22]
[1726832094586,3.3275,150.24,150.23,10.22]
[1726832095681,3.3273,150.25,150.23,10.22]
[1726832096489,11.5946,150.27,150.23,10.22]
[1726832096490,3.3275,150.24,150.23,10.22]
[1726832096683,3.3275,150.24,150.22,3.3278]
[1726832096880,3.3275,150.24,150.22,13.5478]
[1726832097391,10.22,150.26,150.21,3.41021749]
[1726832097587,10.22,150.26,150.2,10.22]
[1726832097788,1.3746,150.27,150.2,10.22]
[1726832097988,10.22,150.26,150.21,10.22]
[1726832098190,10.22,150.26,150.21,13.49163694]
[1726832098391,10.22,150.26,150.21,16.81963694]
[1726832099495,3.3276,150.24,150.21,16.81963694]
[1726832099696,10.22,150.26,150.21,16.81963694]
[1726832100191,3.3276,150.24,150.21,16.81963694]
[1726832100896,10.22,150.26,150.21,3.27163694]
[1726832101093,10.22,150.25,150.2,13.5483]
[1726832101293,10.22,150.25,150.2,10.22]
[1726832101494,3.328,150.22,150.2,10.22]
[1726832102795,10.22,150.25,150.21,3.3281]
[1726832103198,10.22,150.25,150.21,16.93102961]
[1726832103398,11.5946,150.27,150.21,16.93102961]
[1726832103593,11.5946,150.27,150.21,13.60292961]
[1726832103991,3.3277,150.23,150.21,13.60292961]
[1726832105604,10.22,150.25,150.21,3.38292961]
[1726832105796,10.22,150.25,150.2,13.5482]
[1726832106196,10.22,150.25,150.2,10.22]
[1726832106699,3.3278,150.23,150.2,13.5482]
[1726832108001,3.3278,150.23,150.21,3.3281]
[1726832108201,3.3278,150.23,150.22,3.3576317]
[1726832108701,3.3276,150.24,150.22,13.5776317]
[1726832109108,11.5946,150.27,150.22,13.5776317]
[1726832109297,3.3276,150.24,150.22,13.5776317]
[1726832110905,3.3277,150.23,150.22,13.5776317]
[1726832111510,10.04933397,150.36,150.26,10.22]
[1726832111804,10.22,150.32,150.28,10.22]
[1726832112198,3.3264,150.29,150.28,10.22]
[1726832114607,3.3267,150.28,150.26,6.66233982]
[1726832114803,3.3267,150.28,150.26,16.88233982]
[1726832115199,3.3267,150.28,150.26,6.66233982]
[1726832115404,3.3267,150.28,150.27,10.22]
[1726832117308,3.3267,150.28,150.26,6.66233982]
[1726832117503,4.0264,150.35,150.18,1.2194]
[1726832117712,10.22,150.26,150.18,1.2194]
[1726832117904,10.22,150.26,150.21,10.22]
[1726832118100,10.22,150.25,150.17,134.4405]
[1726832118303,10.22,150.25,150.2,10.22]
[1726832118507,3.328,150.22,150.2,10.22]
[1726832118706,10.22,150.25,150.17,134.4405]
[1726832119005,10.22,150.25,150.21,10.22]
[1726832119817,3.328,150.22,150.21,10.22]
[1726832120712,10.22,150.26,150.21,13.59705487]
[1726832120912,10.22,150.27,150.23,10.22]
[1726832121812,3.3275,150.24,150.23,10.22]
[1726832124209,1.3533,150.28,150.23,10.22]
[1726832124409,1.3533,150.28,150.26,10.22]
[1726832125010,1.3533,150.28,150.25,10.22]
[1726832125209,1.3533,150.28,150.26,3.31480041]
[1726832126815,3.3268,150.27,150.26,3.31480041]
[1726832127816,3.3268,150.27,150.26,13.53480041]
[1726832128017,3.3266,150.28,150.26,13.53480041]
[1726832128318,1.3956,150.32,150.27,10.22]
[1726832128614,3.3259,150.31,150.3,10.22]
[1726832129604,3.3261,150.3,150.29,3.36938323]
[1726832132309,1.3956,150.32,150.27,10.22]
[1726832132813,1.3956,150.32,150.28,10.22]
[1726832133413,3.3263,150.3,150.29,13.56741985]
[1726832134013,3.3263,150.3,150.29,10.22]
[1726832134210,3.3265,150.29,150.28,10.22]
[1726832136720,1.3956,150.32,150.28,13.5466]
[1726832136917,1.3956,150.32,150.3,10.22]
[1726832137114,3.3259,150.31,150.3,10.22]
[1726832138112,10.22,150.38,150.31,3.3258]
[1726832138312,10.22,150.38,150.33,10.22]
[1726832138619,3.3252,150.34,150.33,10.22]
[1726832139311,10.5648,150.41,150.33,10.22]
[1726832139518,10.22,150.4,150.36,10.22]
[1726832139714,14.1372,150.41,150.36,10.22]
[1726832140513,3.3248,150.37,150.36,10.22]
[1726832141514,10.22,150.39,150.35,10.22]
[1726832142121,10.22,150.38,150.34,10.22]
[1726832142719,3.325,150.35,150.34,10.22]
[1726832147423,3.3249,150.36,150.34,10.22]
[1726832147619,3.9172,150.41,150.35,10.22]
[1726832147816,2.5992,150.41,150.39,10.22]
[1726832148221,3.3239,150.4,150.39,10.22]
[1726832148427,1.3004,150.46,150.39,10.22]
[1726832148622,1.2959,150.45,150.4,10.22]
[1726832148819,1.2959,150.45,150.42,10.22]
[1726832149221,3.3237,150.41,150.4,10.22]
[1726832150628,10.22,150.44,150.39,10.22]
[1726832151325,3.3239,150.4,150.39,10.22]
[1726832153323,10.22,150.4,150.32,1.3984]
[1726832153514,10.22,150.4,150.35,10.22]
[1726832153914,3.3248,150.36,150.35,10.22]
[1726832155226,3.3247,150.37,150.35,10.22]
[1726832155419,3.3247,150.37,150.36,10.22]
[1726832158924,10.22,150.4,150.33,3.3254]
[1726832159124,10.22,150.4,150.35,10.22]
[1726832159725,10.22,150.4,150.36,10.22]
[1726832160825,3.3246,150.37,150.36,10.22]
[1726832161328,3.3257,150.32,150.31,3.29053154]
[1726832161527,3.3257,150.32,150.31,10.22]
[1726832161828,10.22,150.35,150.31,3.28410685]
[1726832162022,3.3257,150.32,150.31,3.28410685]
[1726832162223,15.98,150.37,150.29,133.04]
[1726832162429,15.98,150.37,150.3,3.40450858]
[1726832162830,15.98,150.37,150.3,3.3261]
[1726832163030,3.3255,150.33,150.3,19.3061]
[1726832163231,19.9375,150.39,150.3,19.3061]
[1726832163432,19.9375,150.39,150.3,15.98]
[1726832163733,3.3257,150.32,150.3,15.98]
[1726832164836,3.3257,150.32,150.3,19.3061]
[1726832165035,15.98,150.37,150.29,136.36302122]
[1726832165429,15.98,150.37,150.29,133.04]
[1726832166035,3.3261,150.3,150.29,136.30413086]
[1726832167030,3.3261,150.3,150.29,133.04]
[1726832169639,2.6998,150.32,150.24,15.98]
[1726832169941,4.0145,150.32,150.24,15.98]
[1726832170138,3.3272,150.25,150.24,15.98]
[1726832170740,3.3277,150.23,150.22,15.98]
[1726832170939,15.98,150.31,150.22,15.98]
[1726832171340,3.3276,150.24,150.22,15.98]
[1726832171944,3.3277,150.23,150.22,15.98]
[1726832172148,4.0145,150.32,150.22,15.98]
[1726832172349,3.3272,150.26,150.22,15.98]
[1726832172940,3.3272,150.26,150.21,3.38369271]
[1726832173142,3.3272,150.26,150.24,15.98]
[1726832173439,3.3269,150.27,150.24,19.28792683]
[1726832173638,4.0145,150.32,150.24,22.61542683]
[1726832174043,4.0145,150.32,150.25,15.98]
[1726832174343,4.0145,150.32,150.26,3.3269]
[1726832174643,3.3266,150.28,150.25,19.3072]
[1726832174845,4.0145,150.32,150.26,3.2916267]
[1726832176045,3.3267,150.28,150.26,3.2916267]
[1726832177146,3.3268,150.27,150.26,3.2916267]
[1726832177649,4.0145,150.32,150.23,15.98]
[1726832178243,3.3273,150.25,150.23,19.34971601]
[1726832178648,4.0145,150.32,150.23,19.34971601]
[1726832178853,3.3275,150.24,150.23,19.34971601]
[1726832179344,3.3275,150.24,150.22,15.98]
[1726832180342,3.3277,150.23,150.22,15.98]
[1726832180942,3.3276,150.24,150.22,15.98]
[1726832181148,15.98,150.31,150.22,15.98]
[1726832181549,3.3277,150.23,150.22,15.98]
[1726832181953,3.3277,150.23,150.22,10.22]
[1726832184147,10.22,150.3,150.22,10.22]
[1726832184547,3.3275,150.24,150.22,3.3279]
[1726832184749,3.3275,150.24,150.23,10.22]
[1726832185148,3.3274,150.25,150.23,10.22]
[1726832185447,3.3274,150.25,150.24,10.22]
[1726832186251,4.0145,150.32,150.24,10.22]
[1726832186252,2.6998,150.32,150.24,10.22]
[1726832186451,2.6998,150.32,150.31,10.22]
[1726832186750,10.22,150.36,150.31,10.22]
[1726832187856,3.3257,150.32,150.31,10.22]
[1726832188952,1.3967,150.38,150.31,10.22]
[1726832189152,1.3967,150.38,150.34,10.22]
[1726832189550,1.3967,150.38,150.37,10.22]
[1726832189955,1.3967,150.38,150.35,15.96]
[1726832189956,3.3247,150.37,150.35,15.96]
[1726832192655,15.96,150.4,150.31,15.96]
[1726832192859,17.3655,150.4,150.31,15.96]
[1726832193166,3.3252,150.35,150.31,19.2859]
[1726832193454,17.3655,150.4,150.31,19.2859]
[1726832193657,17.3655,150.4,150.31,15.96]
[1726832194666,3.3256,150.33,150.31,15.96]
[1726832195757,17.3655,150.4,150.31,15.96]
[1726832196263,3.3256,150.33,150.31,15.96]
[1726832198670,3.3254,150.34,150.32,15.96]
[1726832198970,1.4055,150.4,150.32,15.96]
[1726832199160,1.4055,150.4,150.34,15.96]
[1726832199362,1.4055,150.4,150.34,19.30697344]
[1726832199857,3.325,150.35,150.34,19.30697344]
[1726832200062,1.4055,150.4,150.34,19.30697344]
[1726832200264,3.325,150.35,150.34,19.30697344]
[1726832200859,3.325,150.35,150.34,3.34697344]
[1726832201063,3.3255,150.33,150.29,1.2165]
[1726832201268,3.3255,150.33,150.32,15.96]
[1726832202063,3.3253,150.34,150.32,15.96]
[1726832202464,3.3253,150.34,150.32,19.2857]
[1726832204167,3.325,150.36,150.33,3.3253]
[1726832204372,3.325,150.36,150.3,133.06]
[1726832204373,3.325,150.36,150.35,15.96]
[1726832204670,3.3247,150.37,150.35,15.96]
[1726832205062,3.3247,150.37,150.36,15.96]
[1726832205567,3.3245,150.38,150.36,19.32571343]
[1726832205774,1.4023,150.41,150.36,19.32571343]
[1726832206068,7.974,150.44,150.39,15.96]
[1726832206870,3.3239,150.4,150.39,15.96]
[1726832207076,7.974,150.44,150.38,3.40197544]
[1726832207378,3.3244,150.38,150.37,15.96]
[1726832207671,3.3244,150.38,150.37,3.40061773]
[1726832207975,3.3248,150.36,150.35,15.96]
[1726832208273,1.3062,150.43,150.35,19.28280191]
[1726832208470,3.3245,150.38,150.37,15.96]
[1726832208676,2.6472,150.43,150.37,15.96]
[1726832208875,2.6472,150.43,150.39,15.96]
[1726832209073,3.3239,150.4,150.39,15.96]
[1726832209469,3.3238,150.41,150.39,19.34665079]
[1726832209672,2.6472,150.43,150.39,19.34665079]
[1726832209868,6.6445,150.48,150.39,19.34665079]
[1726832210071,9.3358,150.48,150.41,15.96]
[1726832210370,2.6913,150.48,150.41,15.96]
[1726832210565,2.6913,150.48,150.43,15.96]
[1726832210772,15.96,150.55,150.45,15.96]
[1726832210971,1.2917,150.52,150.47,15.96]
[1726832211175,1.2917,150.52,150.42,133.04]
[1726832211176,1.2917,150.52,150.45,15.96]
[1726832211575,3.3226,150.46,150.45,15.96]
[1726832212073,3.3226,150.46,150.43,15.96]
[1726832212277,3.3228,150.45,150.43,15.96]
[1726832212780,3.3227,150.46,150.43,19.2832]
[1726832212979,1.2917,150.52,150.43,15.96]
[1726832213286,3.3229,150.45,150.43,15.96]
[1726832213782,15.96,150.51,150.42,133.04]
[1726832214382,3.3234,150.43,150.41,15.96]
[1726832214777,15.96,150.51,150.41,15.96]
[1726832215378,15.96,150.51,150.42,15.96]
[1726832216487,3.3231,150.44,150.42,15.96]
[1726832216688,15.96,150.51,150.42,15.96]
[1726832218180,3.3232,150.44,150.42,15.96]
[1726832218788,3.323,150.45,150.42,19.2835]
[1726832218984,15.96,150.51,150.42,15.96]
[1726832219886,3.3229,150.45,150.42,19.2834]
[1726832220293,1.2917,150.52,150.42,19.2834]
[1726832220493,1.2917,150.52,150.42,15.96]
[1726832221193,3.323,150.45,150.42,19.2834]
[1726832221495,15.96,150.51,150.41,19.21710394]
[1726832221698,3.3232,150.44,150.41,19.2836]
[1726832221995,3.3232,150.44,150.43,15.96]
[1726832222491,15.96,150.47,150.38,136.26423967]
[1726832222693,2.752,150.46,150.38,152.22423967]
[1726832223090,3.3236,150.42,150.38,152.22423967]
[1726832223490,3.3236,150.42,150.39,3.324]
[1726832223892,2.752,150.46,150.4,15.96]
[1726832224791,1.4014,150.46,150.4,15.96]
[1726832224994,3.3233,150.44,150.4,15.96]
[1726832225193,3.3233,150.44,150.42,15.96]
[1726832225594,3.3233,150.43,150.42,15.96]
[1726832227596,1.4014,150.46,150.4,15.96]
[1726832227896,3.3237,150.41,150.4,15.96]
[1726832232998,3.3236,150.42,150.4,15.96]
[1726832233393,3.3236,150.42,150.4,19.2839]
[1726832234100,3.3237,150.41,150.4,15.96]
[1726832245109,3.3237,150.41,150.4,19.2839]
[1726832245703,3.3237,150.41,150.4,15.96]
[1726832245905,3.3237,150.41,150.4,10.21]
[1726832247209,1.4014,150.46,150.4,10.21]
[1726832247510,1.4014,150.46,150.43,10.21]
[1726832248806,3.323,150.44,150.43,10.21]
[1726832250213,1.4014,150.46,150.42,10.21]
[1726832250810,1.4014,150.46,150.41,13.54732122]
[1726832251612,1.4014,150.46,150.41,10.21]
[1726832251811,10.21,150.43,150.32,132.98]
[1726832252014,11.5951,150.42,150.36,10.21]
[1726832252213,3.3246,150.37,150.36,13.49611721]
[1726832252906,1.4014,150.46,150.36,13.49611721]
[1726832253114,1.4014,150.46,150.43,10.21]
[1726832254314,3.323,150.44,150.43,10.21]
[1726832259317,3.3229,150.45,150.43,10.21]
[1726832259513,3.3229,150.45,150.44,10.21]
[1726832259815,16.8532,150.51,150.44,10.21]
[1726832260016,1.3302,150.5,150.47,10.21]
[1726832260710,3.3222,150.48,150.47,10.21]
[1726832265320,3.3227,150.46,150.44,3.40690661]
[1726832265520,3.3227,150.46,150.45,10.21]
[1726832265721,1.3302,150.5,150.45,13.4627899]
[1726832265915,3.3219,150.49,150.48,10.21]
[1726832270919,3.3226,150.46,150.45,3.34551785]
[1726832271221,11.5402,150.5,150.45,10.21]
[1726832271526,3.3226,150.46,150.45,10.21]
[1726832273222,3.3224,150.47,150.45,10.21]
[1726832273424,3.3224,150.47,150.46,10.21]
[1726832277230,1.2845,150.53,150.46,10.21]
[1726832277536,99.34499298,150.55,150.52,10.21]
[1726832278128,3.321,150.53,150.52,10.21]
[1726832278634,3.3215,150.51,150.5,10.21]
[1726832284143,99.34499298,150.55,150.48,3.31605254]
[1726832284348,99.34499298,150.55,150.51,10.21]
[1726832284548,10.21,150.54,150.48,3.24782145]
[1726832284847,3.3217,150.5,150.49,10.21]
[1726832285141,99.34499298,150.55,150.45,3.3227]
[1726832285448,99.34499298,150.55,150.47,10.21]
[1726832285652,10.21,150.51,150.47,10.21]
[1726832286543,10.21,150.51,150.48,10.21]
[1726832286745,16.8524,150.53,150.48,10.21]
[1726832287253,3.3219,150.49,150.48,10.21]
[1726832288349,3.3227,150.46,150.44,132.94]
[1726832288552,3.3227,150.46,150.45,10.21]
[1726832288946,3.3224,150.47,150.45,16.8118462]
[1726832289146,3.3224,150.47,150.46,10.21]
[1726832290653,3.3223,150.48,150.46,10.21]
[1726832290844,3.3223,150.48,150.47,10.21]
[1726832291551,3.3221,150.49,150.47,10.21]
[1726832291745,3.3221,150.49,150.48,10.21]
[1726832291945,99.34499298,150.55,150.48,10.21]
[1726832292147,99.34499298,150.55,150.51,10.21]
[1726832292950,3.3213,150.52,150.51,10.21]
[1726832293149,109.55499298,150.55,150.5,10.21]
[1726832293456,3.3217,150.5,150.49,10.21]
[1726832295155,3.3217,150.5,150.45,136.2626]
[1726832295358,10.21,150.52,150.47,10.21]
[1726832296057,7.9386,150.54,150.5,10.21]
[1726832297058,3.3215,150.51,150.5,10.21]
[1726832299161,18.1486,150.54,150.45,6.63764366]
[1726832299360,18.1486,150.54,150.49,10.21]
[1726832299556,3.3226,150.47,150.45,3.31494366]
[1726832299763,10.21,150.53,150.46,10.21]
[1726832299963,10.21,150.53,150.46,3.26830306]
[1726832300263,10.21,150.53,150.47,10.21]
[1726832300766,3.3222,150.48,150.47,10.21]
[1726832302458,7.9386,150.54,150.42,132.94]
[1726832302459,3.3226,150.46,150.42,132.94]
[1726832302664,10.21,150.44,150.35,1.3062]
[1726832303064,10.21,150.42,150.35,4.58989526]
[1726832303364,10.21,150.42,150.37,10.21]
[1726832303564,3.3244,150.38,150.37,10.21]
[1726832306566,10.21,150.42,150.37,10.21]
[1726832306761,2.6198,150.46,150.37,10.21]
[1726832306962,3.3243,150.39,150.37,10.21]
[1726832308669,3.3244,150.38,150.37,10.21]
[1726832309364,2.6198,150.46,150.37,10.21]
[1726832309665,10.21,150.44,150.39,10.21]
[1726832310667,3.3241,150.4,150.39,10.21]
[1726832310970,2.6198,150.46,150.39,10.21]
[1726832311264,3.3236,150.42,150.4,10.21]
[1726832312068,2.6198,150.46,150.4,10.21]
[1726832312366,12.8298,150.46,150.4,10.21]
[1726832312571,3.3235,150.42,150.4,10.21]
[1726832315867,1.3414,150.46,150.41,10.21]
[1726832316067,1.3414,150.46,150.44,10.21]
[1726832316465,3.3228,150.45,150.44,10.21]
[1726832317068,3.3234,150.43,150.42,10.21]
[1726832318373,3.3231,150.44,150.42,10.21]
[1726832318566,3.3231,150.44,150.43,10.21]
[1726832318968,1.2707,150.47,150.43,13.57170033]
[1726832319168,1.2707,150.47,150.45,10.21]
[1726832319576,3.3227,150.46,150.45,10.21]
[1726832320775,3.3224,150.47,150.45,10.21]
[1726832321068,1.2943,150.53,150.46,13.5326]
[1726832321271,3.3221,150.49,150.48,10.21]
[1726832322077,3.3219,150.5,150.48,10.21]
[1726832322470,11.5043,150.53,150.48,10.21]
[1726832322671,11.5043,150.53,150.48,13.59739498]
[1726832323766,3.3219,150.5,150.48,13.59739498]
[1726832324178,1.2943,150.53,150.48,13.59739498]
[1726832325374,3.3219,150.49,150.48,3.38739498]
[1726832325574,10.21,150.52,150.47,10.21]
[1726832325771,10.21,150.52,150.48,3.35449036]
[1726832325971,3.3219,150.49,150.48,3.35449036]
[1726832326173,3.3219,150.49,150.48,13.56449036]
[1726832326369,3.3219,150.49,150.48,3.35449036]
[1726832326577,3.3224,150.47,150.46,10.21]
[1726832326779,10.21,150.5,150.4,5.91152406]
[1726832327086,10.21,150.5,150.45,10.21]
[1726832327374,3.3226,150.46,150.45,10.21]
[1726832328176,10.21,150.49,150.44,10.21]
[1726832328481,3.3228,150.45,150.44,10.21]
[1726832329784,3.3228,150.45,150.43,10.21]
[1726832329983,3.3228,150.45,150.44,10.21]
[1726832330477,3.3226,150.46,150.44,10.21]
[1726832330781,3.3226,150.46,150.45,10.21]
[1726832331083,3.3225,150.47,150.45,10.21]
[1726832331279,3.3225,150.47,150.46,10.21]
[1726832331986,3.3222,150.48,150.46,10.21]
[1726832332180,1.2943,150.53,150.48,10.21]
[1726832332372,1.2943,150.53,150.49,10.21]
[1726832332978,1.2943,150.53,150.49,13.56715038]
[1726832333285,3.3216,150.51,150.49,13.56715038]
[1726832333985,1.2943,150.53,150.49,13.56715038]
[1726832334779,3.3217,150.5,150.49,13.56715038]
[1726832335081,1.2943,150.53,150.49,13.56715038]
[1726832335482,3.3217,150.5,150.49,13.56715038]
[1726832340789,3.3217,150.5,150.49,3.35715038]
[1726832341282,3.3217,150.5,150.49,13.56715038]
[1726832341592,3.3222,150.48,150.44,132.94]
[1726832341782,11.5043,150.53,150.47,10.21]
[1726832341988,11.5043,150.53,150.49,10.21]
[1726832342182,11.5043,150.53,150.49,13.58763983]
[1726832342891,3.3217,150.5,150.49,13.58763983]
[1726832346694,2.6601,150.56,150.49,13.58763983]
[1726832346886,1.2905,150.56,150.55,10.21]
[1726832347691,4.6109,150.56,150.55,10.21]
[1726832348793,3.3208,150.54,150.53,13.61110855]
[1726832349394,3.3208,150.54,150.53,3.40110855]
[1726832349595,3.321,150.53,150.52,10.21]
[1726832349792,3.321,150.53,150.52,13.58120723]
[1726832353791,3.321,150.53,150.52,3.37120723]
[1726832353996,3.3213,150.52,150.51,10.21]
[1726832354197,3.3213,150.52,150.51,13.56758552]
[1726832360003,3.3213,150.52,150.51,3.35758552]
[1726832360200,10.21,150.54,150.47,132.9]
[1726832360399,1.2905,150.56,150.47,132.9]
[1726832360705,10.21,150.52,150.47,143.11]
[1726832360899,3.3219,150.49,150.47,143.11]
[1726832361701,3.3219,150.49,150.48,10.21]
[1726832361901,3.3219,150.49,150.48,13.51187837]
[1726832362605,3.3218,150.5,150.48,13.51187837]
[1726832362795,1.2698,150.53,150.49,10.21]
[1726832362996,1.2698,150.53,150.51,10.21]
[1726832363805,3.3213,150.52,150.51,10.21]
[1726832364004,1.2698,150.53,150.5,3.30287511]
[1726832364707,1.2698,150.53,150.48,10.21]
[1726832365207,1.2698,150.53,150.48,13.45859501]
[1726832365606,3.3216,150.51,150.49,10.21]
[1726832366206,3.3217,150.5,150.49,10.21]
[1726832366705,1.2698,150.53,150.49,10.21]
[1726832367102,3.3216,150.51,150.49,10.21]
[1726832367802,3.3217,150.5,150.49,10.21]
[1726832368304,3.3217,150.5,150.48,3.24859501]
[1726832368305,11.4798,150.53,150.48,13.45859501]
[1726832368501,11.4798,150.53,150.48,10.21]
[1726832368902,3.3219,150.49,150.48,10.21]
[1726832369103,3.3219,150.49,150.48,13.48363731]
[1726832370203,3.3219,150.49,150.48,3.27363731]
[1726832370404,3.3219,150.49,150.48,10.21]
[1726832370607,3.3219,150.5,150.48,13.54277741]
[1726832370807,3.3219,150.5,150.49,10.21]
[1726832371002,1.2698,150.53,150.49,10.21]
[1726832371204,3.3217,150.51,150.48,3.33277741]
[1726832371512,3.3217,150.51,150.45,132.9]
[1726832371706,1.2698,150.53,150.45,132.9]
[1726832372009,1.2698,150.53,150.51,10.21]
[1726832372206,1.2698,150.53,150.51,13.46768941]
[1726832372812,3.3213,150.52,150.51,13.46768941]
[1726832373511,3.3213,150.52,150.51,3.25768941]
[1726832373714,3.3215,150.51,150.5,10.21]
[1726832373914,3.3215,150.51,150.5,13.603911]
[1726832381511,3.3215,150.51,150.5,3.393911]
[1726832381714,3.3217,150.5,150.49,10.21]
[1726832381912,1.2698,150.53,150.49,3.34761881]
[1726832382107,10.21,150.52,150.46,10.21]
[1726832382310,1.3422,150.51,150.46,10.21]
[1726832382507,3.3226,150.47,150.46,10.21]
[1726832387617,10.21,150.48,150.42,132.9]
[1726832387825,10.21,150.46,150.42,132.9]
[1726832388123,3.3233,150.43,150.42,132.9]
[1726832389019,13.5333,150.43,150.42,132.9]
[1726832389225,3.3244,150.38,150.37,10.21]
[1726832389521,10.21,150.42,150.38,3.31904088]
[1726832389729,10.21,150.42,150.38,3.35260683]
[1726832389730,3.3241,150.39,150.38,3.35260683]
[1726832390318,10.21,150.42,150.37,10.21]
[1726832390921,10.21,150.42,150.38,3.36270746]
[1726832391625,3.3243,150.39,150.38,13.57270746]
[1726832392419,3.3243,150.39,150.38,3.36270746]
[1726832392615,10.21,150.42,150.37,10.21]
[1726832392816,10.21,150.42,150.38,3.24598373]
[1726832393327,3.3241,150.39,150.38,3.24598373]
[1726832393525,10.21,150.4,150.36,10.21]
[1726832393725,3.3246,150.38,150.37,10.21]
[1726832394426,3.3246,150.38,150.37,13.49334306]
[1726832394626,3.3246,150.38,150.37,3.28334306]
[1726832394821,3.3246,150.37,150.36,10.21]
[1726832395018,3.3246,150.37,150.36,13.50531393]
[1726832395224,10.21,150.43,150.36,13.50531393]
[1726832395427,10.21,150.43,150.38,10.21]